[Event "87th Spanish Championship 2022"]
[Site "Linares"]
[Date "2022.08.14"]
[Round "5.1"]
[White "Iturrizaga Bonelli, Eduardo"]
[Black "Santos Latasa, Jaime"]
[Result "1/2-1/2"]
[ECO "D45"]
[WhiteElo "2619"]
[BlackElo "2675"]
[Annotator "TA"]
[PlyCount "55"]
[EventDate "2022.08.11"]
[EventType "swiss"]
[EventCountry "ESP"]
[SourceTitle "playchess.com"]
[Source "ChessBase"]
[SourceQuality "1"]
[TimeControl "5400+30"]

{[%evp 23,38,0,0,0,0,0,0,0,3,6,9,0,3,0,0,0,0]} 1. d4 {[%emt 0:01:12]} Nf6 {[%emt 0:00:21]} 2. Nf3 {[%emt 0:00:21]} d5 {[%emt 0:00:05]} 3. c4 {[%emt 0:00:04]} e6 {[%emt 0:00:05]} 4. Nc3 {[%emt 0:00:13]} c6 {[%emt 0:00:07]} 5. e3 {[%emt 0:00:18]} Nbd7 {[%emt 0:00:12]} 6. Qc2 {[%emt 0:00:05]} Bd6 {[%emt 0:00:04]} 7. b3 {[%emt 0:00:05]} O-O {[%emt 0:00:15]} 8. Be2 {[%emt 0:00:03]} b6 {[%emt 0:00:49]} 9. O-O {[%emt 0:00:08]} Bb7 {[%emt 0:00:02]} 10. Bb2 {[%emt 0:00:04]} Qe7 {[%emt 0:00:05]} 11. Rfe1 {[%emt 0:00:05]} Rfe8 {[%emt 0:00:08]} 12. Rad1 {[%emt 0:00:06]} Rad8 {[%emt 0:00:04] The position is equal.} 13. e4 {[%emt 0:00:04] D45: Semi-Slav: 5 e3.} Nxe4 {[%emt 0:00:17]} 14. Nxe4 {[%emt 0:00:05]} dxe4 {[%emt 0:00:04]} 15. Qxe4 {[%emt 0:00:04]} Bb4 {[%emt 0:00:06]} 16. Rf1 {[%emt 0:00:40]} (16. Bd3 Nf6 17. Qh4 Bxe1 18. Rxe1 g6 $17) 16... Bd6 {[%emt 0:00:06]} 17. Rfe1 {[%emt 0:12:51]} Bb4 {[%emt 0:00:30]} 18. Rf1 {[%emt 0:00:03]} ({But not} 18. Bd3 Nf6 19. Qh4 Bxe1 20. Rxe1 g6 $17) 18... Bd6 {[%emt 0:00:05]} 19. Rfe1 {[%emt 0:00:02]} Bb4 {[#] A rather calm draw.  Weighted Error Value: White=0.02 (flawless) /Black=0.01 (flawless)} {Predecessor:} 20. Nd2 $146 Nf6 21. Qc2 c5 22. a3 Ba5 23. Bf1 Qc7 24. d5 exd5 25. Bxf6 gxf6 26. Rxe8+ Rxe8 27. cxd5 Bxd2 28. Qxd2 {0-1 (50) Kuzubov,Y (2592)-Gelfand,B (2650) Riga 2021} 1/2-1/2

[Event "87th Spanish Championship 2022"]
[Site "Linares"]
[Date "2022.08.14"]
[Round "5.2"]
[White "Yuffa, Daniil"]
[Black "Garcia Martin, Marta"]
[Result "1-0"]
[ECO "D30"]
[WhiteElo "2603"]
[BlackElo "2305"]
[Annotator "TA"]
[PlyCount "59"]
[EventDate "2022.08.11"]
[EventType "swiss"]
[EventCountry "ESP"]
[SourceTitle "playchess.com"]
[Source "ChessBase"]
[SourceQuality "1"]
[TimeControl "5400+30"]

{[%evp 19,59,0,0,0,24,24,21,16,22,23,17,18,29,29,35,28,43,35,103,119,268,273,283,284,344,353,568,577,29981,29982,29982,29983,29991,29992,29992,29991,29991,29992,29992,29993,29993,29994]} 1. d4 {[%emt 0:01:00]} d5 {[%emt 0:00:00]} 2. c4 {[%emt 0:00:25]} e6 {[%emt 0:00:00]} 3. Nf3 {[%emt 0:00:27]} Nf6 {[%emt 0:00:00]} 4. g3 {[%emt 0:00:17]} Bb4+ {[%emt 0:00:08]} 5. Bd2 {[%emt 0:00:12]} Be7 {[%emt 0:00:06]} 6. Bg2 {[%emt 0:00:09]} Nbd7 {[%emt 0:00:22]} 7. O-O {[%emt 0:00:53]} c6 {[%emt 0:00:12]} 8. Qc2 {[%emt 0:01:48]} b6 {[%emt 0:00:31]} 9. Bf4 {[%emt 0:00:36]} O-O {[%emt 0:11:57]} 10. Nbd2 $1 {[%emt 0:02:20][%mdl 4] outshines the older 10.Rd1.} Bb7 {[%emt 0:09:34]} 11. e4 {[%emt 0:06:09] E08: Closed Catalan: Main Line: 7 Qc2.} c5 {[%emt 0:09:06][%cal Rd5e4]} 12. cxd5 {[%emt 0:09:19]} exd5 {[%emt 0:00:08]} 13. e5 {[%emt 0:00:21] The position is equal.} Ne8 {[%emt 0:02:43] [#]} 14. Rad1 $146 {[%emt 0:11:18]} ({Predecessor:} 14. Qf5 Nc7 15. Ng5 Bxg5 16. Bxg5 Qe8 17. Be3 cxd4 18. Bxd4 Nb5 19. Nf3 Nxd4 20. Nxd4 {0-1 (73) Kobylkin,E (2425)-Zagrebelny,S (2540) Krasnodar 2003}) 14... Nc7 {[%emt 0:02:08]} 15. Nb1 {[%emt 0:00:32]} Ne6 {[%emt 0:06:16]} 16. Nc3 {[%emt 0:00:17]} Rc8 {[%emt 0:11:57]} 17. Qf5 {[%emt 0:07:48]} g6 {[%emt 0:20:38]} 18. Qh3 {[%emt 0:01:31]} Nxf4 {[%emt 0:00:57]} (18... Nb8 $14) 19. gxf4 $16 {[%emt 0:00:06][%cal Bg3f4,Bf4f5][%mdl 32]} cxd4 {[%emt 0:03:07] A mistake that costs the game.} (19... Re8 $16) 20. Nxd4 $18 {[%emt 0:05:47]} Nc5 {[%emt 0:00:58]} 21. f5 {[%emt 0:08:48]} Re8 {[%emt 0:00:08]} 22. b4 {[%emt 0:03:01]} Na6 {[%emt 0:03:35]} (22... Bf8 {is a better defense.} 23. bxc5 bxc5) 23. e6 {[%emt 0:00:54]} f6 {[%emt 0:00:23]} 24. fxg6 {[%emt 0:01:38] White mates.} hxg6 {[%emt 0:00:05] [#]} 25. Qh6 $1 {[%emt 0:00:42]} Rxc3 {[%emt 0:00:51]} (25... Rc7 26. Qxg6+) 26. Qxg6+ {[%emt 0:00:06]} Kh8 {[%emt 0:00:04]} 27. Qh6+ {[%emt 0:00:57]} Kg8 {[%emt 0:00:05]} 28. Nf5 {[%emt 0:00:17][%csl Gf5][%cal Rh6g7]} Bf8 {[%emt 0:00:14]} 29. Qg6+ {[%emt 0:00:05]} Kh8 {[%emt 0:00:03]} 30. Rd4 {[%emt 0:00:36][%mdl 64] Decoy.  Weighted Error Value: White=0.00 (flawless) /Black=0.84} 1-0

[Event "87th Spanish Championship 2022"]
[Site "Linares"]
[Date "2022.08.14"]
[Round "5.3"]
[White "Cuenca Jimenez, Jose Fernando"]
[Black "Silva Lucena, Cristian"]
[Result "1/2-1/2"]
[ECO "E71"]
[WhiteElo "2552"]
[BlackElo "2212"]
[Annotator "TA"]
[PlyCount "122"]
[EventDate "2022.08.11"]
[EventType "swiss"]
[EventCountry "ESP"]
[SourceTitle "playchess.com"]
[Source "ChessBase"]
[SourceQuality "1"]
[TimeControl "5400+30"]

{[%evp 18,122,35,29,78,77,94,85,83,83,88,77,78,80,102,101,104,77,137,121,134,124,127,118,134,77,79,79,75,62,62,62,62,62,62,37,43,47,86,86,92,92,92,86,86,92,92,86,92,4,83,83,83,83,88,88,88,88,88,88,88,88,88,84,88,83,88,88,88,83,83,0,83,74,83,83,88,69,69,69,69,69,76,76,88,88,88,88,88,88,88,88,88,88,88,8,31,0,0,0,0,0,0,0,0,0,0]} 1. d4 {[%emt 0:00:11]} Nf6 {[%emt 0:00:11]} 2. c4 {[%emt 0:00:08]} g6 {[%emt 0:00:06]} 3. Nc3 {[%emt 0:00:12]} Bg7 {[%emt 0:00:07]} 4. e4 {[%emt 0:00:09]} d6 {[%emt 0:00:05]} 5. h3 {[%emt 0:00:33]} O-O {[%emt 0:00:10]} 6. Be3 {[%emt 0:00:20]} c5 {[%emt 0:00:06]} 7. d5 {[%emt 0:00:16]} e6 {[%emt 0:00:07]} 8. Bd3 {[%emt 0:00:31]} exd5 {[%emt 0:00:06]} 9. exd5 {[%emt 0:00:04]} Re8 {[%emt 0:00:08]} 10. Nf3 {[%emt 0:00:08]} Rxe3+ {[%emt 0:00:11] E90: King's Indian: Classical: Early deviations and 6 h3.} 11. fxe3 $16 {[%emt 0:00:08]} Qe7 {[%emt 0:00:02]} 12. O-O {[%emt 0:00:46][%cal Bh1f1,Bf1f3,Bf3g3][%mdl 32]} Nbd7 {[%emt 0:00:17] White is better.} 13. Qe1 {[%emt 0:01:07]} Ne5 {[%emt 0:01:57]} 14. Nxe5 {[%emt 0:01:36]} Qxe5 {[%emt 0:00:02] [#]} 15. Rd1 $146 {[%emt 0:01:20]} ({Predecessor:} 15. Rf3 Qe7 16. Qh4 Nxd5 17. Qxe7 Nxe7 18. Rd1 Bxc3 19. bxc3 Be6 20. Be4 Rd8 21. Bd5 Nxd5 22. cxd5 {½-½ (33) Zifroni,D (2448)-Flom,G (2506) Herzliya 2019}) 15... Bd7 {[%emt 0:02:10]} 16. Rf3 {[%emt 0:00:52]} Rf8 {[%emt 0:01:57]} 17. Qh4 {[%emt 0:16:00]} g5 {[%emt 0:18:13]} (17... h6 $142) 18. Qg3 $1 {[%emt 0:08:37]} Qxg3 {[%emt 0:02:16]} 19. Rxg3 {[%emt 0:01:08]} g4 {[%emt 0:00:06]} 20. hxg4 {[%emt 0:31:34]} Nxg4 {[%emt 0:00:51]} 21. Ne4 {[%emt 0:01:32]} (21. Rf1 $142) 21... Be5 {[%emt 0:01:44]} 22. Rf3 {[%emt 0:02:22]} f5 {[%emt 0:00:40]} 23. Nf2 {[%emt 0:06:19]} f4 $1 {[%emt 0:01:17]} 24. exf4 {[%emt 0:02:40]} Bd4 {[%emt 0:02:02] [#]} 25. g3 $1 {[%emt 0:05:37][%cal Od1e1]} Re8 $1 {[%emt 0:00:37] Inhibits Re1.} (25... Ne5 26. Kg2 Nxf3 27. Kxf3 $16) 26. Bf1 {[%emt 0:05:31][%cal Od1d4]} Re3 {[%emt 0:09:22]} 27. Rd3 {[%emt 0:00:03] Hoping for Rfxe3.} ({Much weaker is} 27. Rxe3 Bxe3 28. Kg2 Bxf2 $17) 27... Nxf2 {[%emt 0:06:19]} 28. Rxf2 {[%emt 0:01:55]} ({Don't blunder} 28. Rdxe3 $2 Nd1 29. Kh2 Nxe3 $19) 28... Rxd3 {[%emt 0:03:38]} 29. Bxd3 $14 {[%emt 0:00:03][%mdl 4096] Endgame KRB-KB} Bh3 {[%emt 0:00:10]} 30. Bf1 {[%emt 0:02:49]} Bf5 {[%emt 0:00:16] [#]} 31. Be2 $1 {[%emt 0:00:17][%cal Og3g4]} Bh3 {[%emt 0:00:30]} 32. g4 {[%emt 0:04:05]} Kg7 {[%emt 0:01:11] [#]} 33. g5 {[%emt 0:00:25]} h6 {[%emt 0:01:03]} (33... Kg6 $1 $11) 34. gxh6+ $16 {[%emt 0:01:14]} Kxh6 {[%emt 0:00:09] [#]} 35. Bf1 $1 {[%emt 0:00:26]} Bg4 {[%emt 0:06:32] [#]} (35... Bf5 36. Kg2) 36. Kg2 $1 {[%emt 0:00:08] Rc2 is the strong threat.} Bxf2 {[%emt 0:00:06]} 37. Kxf2 {[%emt 0:00:03] KB-KB} Kg7 {[%emt 0:00:21]} 38. Ke3 {[%emt 0:00:35]} Kf6 {[%emt 0:00:11]} 39. Bd3 {[%emt 0:00:06]} Bh5 {[%emt 0:00:36]} 40. Bh7 {[%emt 0:00:26]} Bf7 {[%emt 0:00:47]} 41. Ke4 {[%emt 0:02:14]} Bh5 {[%emt 0:00:07]} 42. Kd3 {[%emt 0:00:23]} Bg4 {[%emt 0:01:12]} 43. Bg8 {[%emt 0:02:28]} Bf5+ {[%emt 0:01:00]} 44. Kc3 {[%emt 0:00:03]} ({White should try} 44. Ke3 $16) 44... Bd7 {[%emt 0:00:05]} (44... Kg7 $1 $11 {remains equal.} 45. Be6 Kf6) 45. Kd2 {[%emt 0:04:10]} Bf5 {[%emt 0:00:24]} 46. Ke3 {[%emt 0:00:24]} Bh3 {[%emt 0:00:25]} 47. Be6 {[%emt 0:01:16]} Bf1 {[%emt 0:00:09]} 48. b3 {[%emt 0:00:04]} a5 {[%emt 0:00:23]} 49. Bd7 {[%emt 0:00:21]} Ke7 {[%emt 0:00:25]} 50. Bg4 {[%emt 0:00:59]} a4 {[%emt 0:00:39]} 51. Kd2 {[%emt 0:00:37]} axb3 {[%emt 0:01:04]} 52. axb3 {[%emt 0:00:02]} Kf6 {[%emt 0:00:15]} 53. Be2 {[%emt 0:00:50]} Bh3 {[%emt 0:00:09] [#]} 54. Bd3 $1 {[%emt 0:00:05]} Bd7 {[%emt 0:00:41]} 55. Kc3 {[%emt 0:00:03]} Kg7 {[%emt 0:01:06]} 56. Kb2 {[%emt 0:00:02]} (56. b4 $16) 56... b6 {[%emt 0:00:35]} 57. Ka3 {[%emt 0:00:17]} Kh6 {[%emt 0:00:12] The position is equal.} 58. b4 {[%emt 0:00:52]} Kh5 {[%emt 0:00:42]} 59. Bc2 {[%emt 0:01:25]} Kg4 {[%emt 0:01:09]} 60. f5 {[%emt 0:00:33]} Kg5 {[%emt 0:00:06]} 61. Kb3 {[%emt 0:00:21]} Kf6 {[%emt 0:00:13] Weighted Error Value: White=0.12 (very precise) /Black=0.10 (very precise)} 1/2-1/2

[Event "87th Spanish Championship 2022"]
[Site "Linares"]
[Date "2022.08.14"]
[Round "5.4"]
[White "Garriga Cazorla, Pere"]
[Black "Salgado Lopez, Ivan"]
[Result "1-0"]
[ECO "D35"]
[WhiteElo "2505"]
[BlackElo "2604"]
[Annotator "TA"]
[PlyCount "77"]
[EventDate "2022.08.11"]
[EventType "swiss"]
[EventCountry "ESP"]
[SourceTitle "playchess.com"]
[Source "ChessBase"]
[SourceQuality "1"]
[TimeControl "5400+30"]

{[%evp 13,77,16,22,9,25,26,25,19,17,7,19,30,45,30,79,71,87,85,93,78,171,153,387,389,415,411,390,386,480,550,437,589,595,595,585,586,29986,602,597,605,605,602,602,568,596,604,573,582,596,587,607,594,604,608,609,598,588,582,662,666,746,690,704,678,4821,4685]} 1. d4 {[%emt 0:00:05]} d5 {[%emt 0:00:15]} 2. c4 {[%emt 0:02:00]} e6 {[%emt 0:00:13]} 3. Nc3 {[%emt 0:00:29]} Nf6 {[%emt 0:00:19]} 4. cxd5 {[%emt 0:00:44]} exd5 {[%emt 0:00:17]} 5. Bg5 {[%emt 0:00:31]} c6 {[%emt 0:00:14]} 6. e3 {[%emt 0:01:08]} Be7 {[%emt 0:00:15] 6...h6 is the fancy move.} 7. Bd3 {[%emt 0:01:05]} Nbd7 {[%emt 0:00:12]} 8. h3 {[%emt 0:02:22] D35: Queen's Gambit Declined: Exchange Variation.} O-O {[%emt 0:02:33]} 9. Qc2 {[%emt 0:00:42]} Re8 {[%emt 0:01:22]} 10. Bf4 {[%emt 0:00:06] White has an edge.} g6 {[%emt 0:00:35]} 11. Nf3 {[%emt 0:02:53]} Nh5 {[%emt 0:00:14]} 12. Bh2 {[%emt 0:03:16]} Ng7 {[%emt 0:00:09]} 13. O-O-O {[%emt 0:35:49][%cal Oc3d5] [#] And now Nxd5! would win.} Nb6 $146 {[%emt 0:00:32]} (13... Bf8 $11 {might be stronger.}) ({Predecessor:} 13... Qa5 14. Kb1 Nf6 15. g4 Be6 16. Ne5 Rac8 17. f4 Ne4 18. Bxe4 dxe4 19. f5 Bd5 20. fxg6 fxg6 {½-½ (46) Martin Duque,J (2176)-Rodriguez de Castro,A (2160) Madrid 2012}) 14. g4 $16 {[%emt 0:00:22]} Bd7 {[%emt 0:00:38]} 15. Ne5 {[%emt 0:02:35][%cal Oh3h4]} Rc8 {[%emt 0:00:23]} 16. Kb1 {[%emt 0:00:18][%cal Oh3h4] 0x0.001b806c20b0dp-1022s more active pieces.} a6 {[%emt 0:11:02]} (16... Bb4 $16 {keeps fighting.}) 17. h4 $1 $18 {[%emt 0:12:54]} c5 $2 {[%emt 0:07:56] [#] A mistake that costs the game.} (17... Bxh4 $16 18. Bf4 c5) 18. h5 $1 {[%emt 0:01:56][%cal Rh5g6]} cxd4 {[%emt 0:02:42]} 19. hxg6 {[%emt 0:02:29]} fxg6 {[%emt 0:00:09] [#]} 20. Bxg6 $1 {[%emt 0:05:32][%mdl 512]} dxc3 {[%emt 0:00:38]} (20... hxg6 21. Qxg6) 21. Bf7+ {[%emt 0:03:23]} (21. Bxh7+ Kf8 $18) 21... Kf8 {[%emt 0:00:06][%cal Oe7f6]} 22. Qxh7 {[%emt 0:00:07][%cal Rh7h8]} (22. Bxe8 Qxe8 23. Nxd7+ Nxd7 24. bxc3 Rc5 $15) 22... Bf5+ {[%emt 0:01:51]} 23. gxf5 {[%emt 0:00:51][%csl Gf7][%cal Rh7g8]} c2+ {[%emt 0:00:18]} 24. Ka1 {[%emt 0:00:05][%csl Gf7][%cal Rh7g8]} cxd1=Q+ {[%emt 0:01:05]} 25. Rxd1 {[%emt 0:00:05][%cal Rh7h8]} Bf6 {[%emt 0:02:16] [#] White is clearly winning.} 26. Qg8+ $1 {[%emt 0:04:54]} Ke7 {[%emt 0:00:10]} 27. Ng6+ {[%emt 0:00:03]} Kd7 {[%emt 0:00:26]} 28. Bxe8+ {[%emt 0:00:04]} Qxe8 {[%emt 0:01:59]} 29. Rxd5+ {[%emt 0:00:07]} Kc6 {[%emt 0:00:46]} 30. Rd6+ {[%emt 0:00:05]} Kc5 {[%emt 0:00:11]} 31. Qb3 {[%emt 0:02:02]} Qb5 {[%emt 0:06:43][%cal Of6b2] Threatens to win with ...Bxb2+!} 32. Qa3+ {[%emt 0:05:59]} Qb4 {[%emt 0:02:40]} 33. Qxb4+ {[%emt 0:00:07]} Kxb4 {[%emt 0:00:28][%cal Rc8c1]} 34. a3+ {[%emt 0:00:03]} ({Not} 34. Rxb6+ $2 Ka5 35. Kb1 (35. Bc7 $2 Rxc7 36. Kb1 Kxb6 $19) 35... Kxb6 $19) 34... Kb5 {[%emt 0:01:58][%cal Of6b2]} 35. Rxf6 {[%emt 0:00:07]} Rc1+ {[%emt 0:00:12]} 36. Ka2 {[%emt 0:00:04]} Rc2 {[%emt 0:00:06]} 37. Be5 {[%emt 0:00:38]} Rxf2 {[%emt 0:00:58]} 38. e4 {[%emt 0:00:59]} Re2 {[%emt 0:02:03] [#]} 39. Rxb6+ $1 {[%emt 0:00:15] Weighted Error Value: White=0.01 (flawless) /Black=0.42} 1-0

[Event "87th Spanish Championship 2022"]
[Site "Linares"]
[Date "2022.08.14"]
[Round "5.5"]
[White "Bernabeu Lopez, Carlos Javier"]
[Black "Perez Candelario, Manuel"]
[Result "0-1"]
[ECO "C07"]
[WhiteElo "2421"]
[BlackElo "2578"]
[Annotator "TA"]
[PlyCount "110"]
[EventDate "2022.08.11"]
[EventType "swiss"]
[EventCountry "ESP"]
[SourceTitle "playchess.com"]
[Source "ChessBase"]
[SourceQuality "1"]
[TimeControl "5400+30"]

{[%evp 19,110,16,27,0,0,0,13,-36,-34,-31,-30,-45,-35,-41,-44,-62,-64,-63,-59,-87,-89,-100,-97,-99,-96,-109,-109,-189,-191,-151,-172,-200,-154,-231,-213,-285,-286,-262,-220,-227,-227,-227,-232,-216,-200,-221,-189,-294,-304,-283,-296,-447,-437,-436,-352,-352,-352,-360,-360,-713,-713,-713,-708,-703,-520,-844,-569,-1124,-1359,-1297,-1031,-1456,-1344,-1155,-569,-569,-569,-566,-562,-555,-547,-540,-533,-533,-466,-4786,-5522,-5816,-3587,-6070,-4989,-1579,-1433]} 1. e4 {[%emt 0:00:01]} e6 {[%emt 0:01:20]} 2. d4 {[%emt 0:00:09]} d5 {[%emt 0:00:04]} 3. Nd2 {[%emt 0:00:04]} c5 {[%emt 0:00:13]} 4. exd5 {[%emt 0:00:06]} Qxd5 {[%emt 0:00:13]} 5. Ngf3 {[%emt 0:00:04]} cxd4 {[%emt 0:00:15]} 6. Bc4 {[%emt 0:00:04]} Qd6 {[%emt 0:00:17]} 7. O-O {[%emt 0:00:09]} Nf6 {[%emt 0:00:18]} 8. Nb3 {[%emt 0:00:05]} Nc6 {[%emt 0:00:11]} 9. Nbxd4 {[%emt 0:00:55]} Nxd4 {[%emt 0:00:39]} 10. Nxd4 {[%emt 0:03:53]} Be7 {[%emt 0:00:31]} 11. Nb5 {[%emt 0:03:13] C07: French Tarrasch: 3...c5, 4 Ngf3 and 4 exd5 Qxd5.} Qc6 {[%emt 0:03:42]} 12. Qe2 {[%emt 0:02:52][%cal Ob5a7]} a6 {[%emt 0:01:17] [#]} 13. Nc3 $146 {[%emt 0:03:23]} (13. Bf4 $1 $11 O-O 14. Nd4) ({Predecessor:} 13. Nd4 Qc7 14. Re1 O-O 15. Bg5 Bd7 16. Bd3 Rfe8 17. c3 Nd5 18. Bxe7 Rxe7 19. Be4 {½-½ (99) Harika,D (2517)-Shimanov,A (2581) Chess.com INT 2022}) 13... b5 $15 {[%emt 0:09:49]} 14. Bd3 {[%emt 0:05:29]} Bb7 {[%emt 0:00:14][%csl Gb7][%cal Rc6g2]} 15. f3 $1 {[%emt 0:00:55]} O-O {[%emt 0:03:20]} 16. Kh1 {[%emt 0:05:21]} Qc7 $36 {[%emt 0:05:22][%mdl 2048] Black has some pressure.} 17. Qf2 {[%emt 0:02:40]} b4 {[%emt 0:06:19]} 18. Ne2 {[%emt 0:07:48]} Nd5 {[%emt 0:01:15] Black is more active.} 19. Qg3 {[%emt 0:02:20]} Qxg3 {[%emt 0:04:02]} 20. Nxg3 {[%emt 0:00:41]} a5 {[%emt 0:00:58]} 21. Rd1 {[%emt 0:02:41]} Rfc8 {[%emt 0:01:58]} 22. Bd2 {[%emt 0:03:05]} g6 {[%emt 0:09:12]} 23. Be4 {[%emt 0:21:06]} (23. Rab1 $17) 23... f5 $19 {[%emt 0:02:40]} 24. Bxd5 {[%emt 0:00:55]} Bxd5 {[%emt 0:00:08]} 25. c3 {[%emt 0:00:17]} Bf6 {[%emt 0:03:37]} 26. Ne2 {[%emt 0:03:25]} (26. a3 $17) 26... a4 {[%emt 0:09:08]} 27. a3 {[%emt 0:01:25]} Bc4 {[%emt 0:03:18] A strong pair of Bishops.} 28. Re1 {[%emt 0:01:38]} Rd8 {[%emt 0:01:49]} 29. Be3 {[%emt 0:02:13]} bxa3 {[%emt 0:01:54]} 30. bxa3 {[%emt 0:00:07]} Bxe2 {[%emt 0:01:06]} 31. Rxe2 {[%emt 0:00:05]} Bxc3 {[%emt 0:00:10]} 32. Rc1 {[%emt 0:01:08]} Rd3 {[%emt 0:01:16]} 33. g3 {[%emt 0:01:30]} (33. Bc5 {was worth a try.}) 33... Bg7 {[%emt 0:03:22]} 34. Bc5 {[%emt 0:02:12]} Rc8 {[%emt 0:01:24]} ({Don't go for} 34... Rxf3 $2 35. Bb4 $19) 35. Kg2 {[%emt 0:03:37]} (35. Rcc2 {keeps fighting.}) 35... Bf8 {[%emt 0:05:16]} ({Wrong is} 35... Bd4 $2 36. Rec2 $19) 36. Rec2 {[%emt 0:02:26]} Rxc5 {[%emt 0:00:06]} 37. Rxc5 {[%emt 0:00:04]} Bxc5 {[%emt 0:00:04]} 38. Rxc5 {[%emt 0:00:07]} Rxa3 {[%emt 0:00:03][%mdl 4096] Endgame KR-KR} 39. Rc7 $2 {[%emt 0:01:27]} (39. g4) 39... Ra2+ {[%emt 0:00:44] Black is clearly winning.} 40. Kh3 {[%emt 0:00:09]} a3 {[%emt 0:01:11]} 41. Ra7 {[%emt 0:00:18]} h6 {[%emt 0:00:58] [#] ...e5 is the strong threat.} 42. f4 {[%emt 0:00:50]} (42. g4 $142 Ra1 43. Ra6 fxg4+ 44. Kxg4) 42... Kf8 {[%emt 0:01:26]} 43. Ra8+ {[%emt 0:01:53]} Ke7 {[%emt 0:00:49]} 44. Ra6 {[%emt 0:00:54]} Kd7 {[%emt 0:01:56]} 45. g4 {[%emt 0:01:10]} fxg4+ {[%emt 0:04:01]} 46. Kxg4 {[%emt 0:00:06]} Rxh2 {[%emt 0:00:35]} (46... Ra1 $142 47. Ra7+ Kc6) 47. Rxa3 {[%emt 0:00:24]} Ke7 {[%emt 0:00:06]} 48. Ra7+ {[%emt 0:00:13]} Kf6 {[%emt 0:00:05]} 49. Ra8 {[%emt 0:00:04]} Rb2 {[%emt 0:00:59] And now ...Rb3 would win.} 50. Rf8+ {[%emt 0:00:10]} Kg7 {[%emt 0:00:07]} 51. Re8 {[%emt 0:00:53]} Rb6 {[%emt 0:00:54]} 52. Ra8 {[%emt 0:00:59]} (52. Kf3 $142 h5 53. Kf2) 52... Rb3 {[%emt 0:01:23] Strongly threatening ...h5+.} 53. Ra4 {[%emt 0:02:21]} Re3 {[%emt 0:01:11]} 54. Ra8 {[%emt 0:01:05]} h5+ {[%emt 0:00:49]} 55. Kh4 {[%emt 0:00:05]} Rf3 {[%emt 0:00:30] Black took control after the opening.  Weighted Error Value: White=0.55/Black=0.20 (precise)} 0-1